[Event "Titled Tuesday Blitz August 17 2021"]
[White "Sapunov, Evgeny"]
[Black "Real De Azua, Ernesto"]
[WhiteFideId "4126661"]
[BlackFideId "108154"]
[WhiteElo "2470"]
[BlackElo "2476"]
[Result "1-0"]
[Round "05"]
[TimeControl "180+1"]
[Date "2021.08.17"]
[WhiteClock "0:00:26"]
[BlackClock "0:00:01"]

1. c4 {[%clk 0:02:57]}  Nf6 {[%clk 0:02:58]} 2. Nf3 {[%clk 0:02:57]}  b6 {[%clk 0:02:55]} 3. g3 {[%clk 0:02:56]}  Bb7 {[%clk 0:02:55]} 4. Bg2 {[%clk 0:02:57]}  g6 {[%clk 0:02:54]} 5. O-O {[%clk 0:02:57]}  Bg7 {[%clk 0:02:54]} 6. d4 {[%clk 0:02:58]}  O-O {[%clk 0:02:53]} 7. d5 {[%clk 0:02:58]}  d6 {[%clk 0:02:37]} 8. Nc3 {[%clk 0:02:58]}  Nbd7 {[%clk 0:02:21]} 9. e4 {[%clk 0:02:55]}  c6 {[%clk 0:02:17]} 10. h3 {[%clk 0:02:53]}  Rc8 {[%clk 0:02:15]} 11. Re1 {[%clk 0:02:49]}  cxd5 {[%clk 0:02:10]} 12. cxd5 {[%clk 0:02:49]}  a6 {[%clk 0:02:03]} 13. a4 {[%clk 0:02:48]}  Nc5 {[%clk 0:01:51]} 14. e5 {[%clk 0:02:29]}  dxe5 {[%clk 0:01:09]} 15. Nxe5 {[%clk 0:02:28]}  Re8 {[%clk 0:00:56]} 16. Bg5 {[%clk 0:02:08]}  Qd6 {[%clk 0:00:47]} 17. Nc4 {[%clk 0:01:54]}  Qd8 {[%clk 0:00:45]} 18. d6 {[%clk 0:01:42]}  Bxg2 {[%clk 0:00:41]} 19. Kxg2 {[%clk 0:01:39]}  exd6 {[%clk 0:00:37]} 20. Rxe8+ {[%clk 0:01:35]}  Qxe8 {[%clk 0:00:37]} 21. Qf3 {[%clk 0:01:36]}  Nfe4 {[%clk 0:00:32]} 22. Bf4 {[%clk 0:01:24]}  Bxc3 {[%clk 0:00:26]} 23. bxc3 {[%clk 0:01:21]}  Qc6 {[%clk 0:00:25]} 24. Rd1 {[%clk 0:01:13]}  Nxc3 {[%clk 0:00:22]} 25. Rxd6 {[%clk 0:01:07]}  Qxf3+ {[%clk 0:00:21]} 26. Kxf3 {[%clk 0:01:08]}  N3xa4 {[%clk 0:00:17]} 27. Nxb6 {[%clk 0:01:07]}  Nxb6 {[%clk 0:00:17]} 28. Rxb6 {[%clk 0:01:07]}  Ra8 {[%clk 0:00:15]} 29. Rc6 {[%clk 0:00:59]}  Ne6 {[%clk 0:00:15]} 30. Be5 {[%clk 0:00:58]}  h5 {[%clk 0:00:14]} 31. h4 {[%clk 0:00:57]}  a5 {[%clk 0:00:14]} 32. Bf6 {[%clk 0:00:57]}  Kf8 {[%clk 0:00:14]} 33. Ke2 {[%clk 0:00:56]}  Ke8 {[%clk 0:00:13]} 34. Kd1 {[%clk 0:00:55]}  Kd7 {[%clk 0:00:13]} 35. Rc4 {[%clk 0:00:54]}  a4 {[%clk 0:00:13]} 36. Kc1 {[%clk 0:00:53]}  Kd6 {[%clk 0:00:13]} 37. Kb1 {[%clk 0:00:53]}  Kd5 {[%clk 0:00:14]} 38. Rb4 {[%clk 0:00:52]}  Ra7 {[%clk 0:00:13]} 39. Ka2 {[%clk 0:00:52]}  Nc5 {[%clk 0:00:08]} 40. Ka3 {[%clk 0:00:50]}  Ne6 {[%clk 0:00:04]} 41. Ka2 {[%clk 0:00:48]}  Kd6 {[%clk 0:00:04]} 42. Ka3 {[%clk 0:00:48]}  Kd5 {[%clk 0:00:05]} 43. Rb8 {[%clk 0:00:47]}  Ke4 {[%clk 0:00:04]} 44. Rb2 {[%clk 0:00:43]}  Kf3 {[%clk 0:00:04]} 45. Rc2 {[%clk 0:00:42]}  Rc7 {[%clk 0:00:03]} 46. Rd2 {[%clk 0:00:42]}  Rc4 {[%clk 0:00:03]} 47. Rd7 {[%clk 0:00:41]}  Rc7 {[%clk 0:00:02]} 48. Rd2 {[%clk 0:00:40]}  Rb7 {[%clk 0:00:02]} 49. Be5 {[%clk 0:00:35]}  Rb3+ {[%clk 0:00:01]} 50. Kxa4 {[%clk 0:00:36]}  Nc5+ {[%clk 0:00:01]} 51. Ka5 {[%clk 0:00:36]}  Ne4 {[%clk 0:00:02]} 52. Rd7 {[%clk 0:00:34]}  Nxf2 {[%clk 0:00:01]} 53. Rxf7+ {[%clk 0:00:34]}  Kg2 {[%clk 0:00:01]} 54. Rg7 {[%clk 0:00:32]}  Ng4 {[%clk 0:00:02]} 55. Bf4 {[%clk 0:00:31]}  Ra3+ {[%clk 0:00:02]} 56. Kb4 {[%clk 0:00:31]}  Ra6 {[%clk 0:00:02]} 57. Kb5 {[%clk 0:00:31]}  Re6 {[%clk 0:00:03]} 58. Kc5 {[%clk 0:00:31]}  Kf3 {[%clk 0:00:02]} 59. Kd5 {[%clk 0:00:31]}  Rf6 {[%clk 0:00:03]} 60. Rg8 {[%clk 0:00:29]}  Rf5+ {[%clk 0:00:03]} 61. Ke6 {[%clk 0:00:29]}  Rf6+ {[%clk 0:00:04]} 62. Ke7 {[%clk 0:00:30]}  Ke4 {[%clk 0:00:03]} 63. Ra8 {[%clk 0:00:28]}  Kf3 {[%clk 0:00:03]} 64. Ra5 {[%clk 0:00:27]}  Rc6 {[%clk 0:00:02]} 65. Rg5 {[%clk 0:00:27]}  Ke4 {[%clk 0:00:02]} 66. Kf7 {[%clk 0:00:27]}  Rf6+ {[%clk 0:00:02]} 67. Kg7 {[%clk 0:00:27]}  Re6 {[%clk 0:00:01]} 68. Rxg6 {[%clk 0:00:26]} 1-0


[Site "https://www.chess.com"]

[Event "Titled Tuesday Blitz August 17 2021"]
[White "Sevian, Samuel"]
[Black "D`Costa, Lorin"]
[WhiteFideId "2040506"]
[BlackFideId "409219"]
[WhiteElo "2964"]
[BlackElo "2287"]
[Result "1-0"]
[Round "05"]
[TimeControl "180+1"]
[Date "2021.08.17"]
[WhiteClock "0:02:23"]
[BlackClock "0:00:01"]

1. d4 {[%clk 0:03:00]}  d5 {[%clk 0:02:59]} 2. c4 {[%clk 0:02:58]}  c6 {[%clk 0:02:59]} 3. Nf3 {[%clk 0:02:58]}  Nf6 {[%clk 0:02:59]} 4. e3 {[%clk 0:02:59]}  Bf5 {[%clk 0:02:58]} 5. Nc3 {[%clk 0:02:58]}  e6 {[%clk 0:02:58]} 6. Bd3 {[%clk 0:02:58]}  Bg6 {[%clk 0:02:51]} 7. O-O {[%clk 0:02:58]}  Nbd7 {[%clk 0:02:51]} 8. b3 {[%clk 0:02:53]}  Bd6 {[%clk 0:02:43]} 9. Bb2 {[%clk 0:02:53]}  O-O {[%clk 0:02:43]} 10. Qc2 {[%clk 0:02:53]}  Re8 {[%clk 0:02:39]} 11. e4 {[%clk 0:02:53]}  dxe4 {[%clk 0:02:21]} 12. Nxe4 {[%clk 0:02:54]}  Nxe4 {[%clk 0:02:20]} 13. Bxe4 {[%clk 0:02:54]}  Nf6 {[%clk 0:02:21]} 14. Bxg6 {[%clk 0:02:54]}  hxg6 {[%clk 0:02:21]} 15. Rfe1 {[%clk 0:02:55]}  a5 {[%clk 0:02:08]} 16. a3 {[%clk 0:02:54]}  Qc7 {[%clk 0:01:59]} 17. Rad1 {[%clk 0:02:54]}  Rad8 {[%clk 0:01:59]} 18. h4 {[%clk 0:02:53]}  b5 {[%clk 0:01:39]} 19. Rd3 {[%clk 0:02:46]}  bxc4 {[%clk 0:01:26]} 20. Qxc4 {[%clk 0:02:44]}  Nd5 {[%clk 0:01:22]} 21. Ne5 {[%clk 0:02:43]}  Rc8 {[%clk 0:01:19]} 22. Rf3 {[%clk 0:02:43]}  Bxe5 {[%clk 0:01:15]} 23. dxe5 {[%clk 0:02:42]}  Red8 {[%clk 0:01:12]} 24. Qg4 {[%clk 0:02:40]}  Ne7 {[%clk 0:01:06]} 25. h5 {[%clk 0:02:40]}  gxh5 {[%clk 0:01:06]} 26. Qxh5 {[%clk 0:02:40]}  Ng6 {[%clk 0:01:05]} 27. Rh3 {[%clk 0:02:40]}  Rd2 {[%clk 0:00:58]} 28. Qh7+ {[%clk 0:02:38]}  Kf8 {[%clk 0:00:58]} 29. Bc1 {[%clk 0:02:39]}  Rcd8 {[%clk 0:00:39]} 30. Bxd2 {[%clk 0:02:39]}  Rxd2 {[%clk 0:00:39]} 31. Rf3 {[%clk 0:02:40]}  Nxe5 {[%clk 0:00:32]} 32. Rf4 {[%clk 0:02:40]}  Ng6 {[%clk 0:00:27]} 33. Rf3 {[%clk 0:02:40]}  Ne5 {[%clk 0:00:27]} 34. Qh8+ {[%clk 0:02:39]}  Ke7 {[%clk 0:00:27]} 35. Rfe3 {[%clk 0:02:38]}  Ng4 {[%clk 0:00:22]} 36. Rxe6+ {[%clk 0:02:38]}  fxe6 {[%clk 0:00:20]} 37. Qxg7+ {[%clk 0:02:38]}  Kd6 {[%clk 0:00:20]} 38. Qxg4 {[%clk 0:02:38]}  Qf7 {[%clk 0:00:18]} 39. Qg3+ {[%clk 0:02:35]}  Kd7 {[%clk 0:00:17]} 40. b4 {[%clk 0:02:36]}  axb4 {[%clk 0:00:17]} 41. axb4 {[%clk 0:02:37]}  Qf5 {[%clk 0:00:14]} 42. Qe3 {[%clk 0:02:36]}  Qd5 {[%clk 0:00:13]} 43. Qa7+ {[%clk 0:02:34]}  Ke8 {[%clk 0:00:13]} 44. Qb8+ {[%clk 0:02:34]}  Kf7 {[%clk 0:00:14]} 45. Qf4+ {[%clk 0:02:35]}  Ke7 {[%clk 0:00:13]} 46. Qg4 {[%clk 0:02:35]}  Kd7 {[%clk 0:00:12]} 47. Ra1 {[%clk 0:02:32]}  Rd4 {[%clk 0:00:10]} 48. Ra7+ {[%clk 0:02:31]}  Kd6 {[%clk 0:00:11]} 49. Qg3+ {[%clk 0:02:32]}  e5 {[%clk 0:00:07]} 50. Qg6+ {[%clk 0:02:32]}  Qe6 {[%clk 0:00:08]} 51. Qg7 {[%clk 0:02:33]}  Kd5 {[%clk 0:00:07]} 52. f3 {[%clk 0:02:29]}  Kc4 {[%clk 0:00:07]} 53. b5 {[%clk 0:02:29]}  cxb5 {[%clk 0:00:07]} 54. Qc7+ {[%clk 0:02:28]}  Kb3 {[%clk 0:00:06]} 55. Qc1 {[%clk 0:02:28]}  Qc4 {[%clk 0:00:03]} 56. Qb1+ {[%clk 0:02:26]}  Kc3 {[%clk 0:00:03]} 57. Ra3+ {[%clk 0:02:26]}  Kd2 {[%clk 0:00:04]} 58. Ra2+ {[%clk 0:02:24]}  Ke3 {[%clk 0:00:03]} 59. Qe1+ {[%clk 0:02:23]}  Kf4 {[%clk 0:00:03]} 60. Re2 {[%clk 0:02:24]}  Kf5 {[%clk 0:00:01]} 61. Rxe5+ {[%clk 0:02:23]}  Kf6 {[%clk 0:00:01]} 62. Re3 {[%clk 0:02:23]} 1-0


[Site "https://www.chess.com"]

[Event "Titled Tuesday Blitz August 17 2021"]
[White "Shkapenko, Pavel"]
[Black "Timofeev, Artyom"]
[WhiteFideId "4151933"]
[BlackFideId "4140419"]
[WhiteElo "2386"]
[BlackElo "2582"]
[Result "0-1"]
[Round "05"]
[TimeControl "180+1"]
[Date "2021.08.17"]
[WhiteClock "0:00:08"]
[BlackClock "0:00:09"]

1. e4 {[%clk 0:03:00]}  c5 {[%clk 0:02:59]} 2. c3 {[%clk 0:03:01]}  d6 {[%clk 0:02:56]} 3. d4 {[%clk 0:03:00]}  Qc7 {[%clk 0:02:57]} 4. Nf3 {[%clk 0:02:57]}  g6 {[%clk 0:02:56]} 5. dxc5 {[%clk 0:02:54]}  Qxc5 {[%clk 0:02:52]} 6. Be3 {[%clk 0:02:51]}  Qc7 {[%clk 0:02:52]} 7. Na3 {[%clk 0:02:52]}  a6 {[%clk 0:02:47]} 8. Nc4 {[%clk 0:02:51]}  Nd7 {[%clk 0:02:47]} 9. a4 {[%clk 0:02:50]}  Ngf6 {[%clk 0:02:45]} 10. Qc2 {[%clk 0:02:25]}  Nc5 {[%clk 0:02:33]} 11. e5 {[%clk 0:02:15]}  dxe5 {[%clk 0:02:33]} 12. Ncxe5 {[%clk 0:01:56]}  Bf5 {[%clk 0:02:28]} 13. Qd1 {[%clk 0:01:48]}  Rd8 {[%clk 0:02:23]} 14. Bd4 {[%clk 0:01:48]}  Bg7 {[%clk 0:02:08]} 15. Bc4 {[%clk 0:01:45]}  Be6 {[%clk 0:01:57]} 16. Qe2 {[%clk 0:01:30]}  Bxc4 {[%clk 0:01:56]} 17. Qxc4 {[%clk 0:01:29]}  Ne6 {[%clk 0:01:57]} 18. Qxc7 {[%clk 0:01:28]}  Nxc7 {[%clk 0:01:57]} 19. O-O {[%clk 0:01:10]}  Ne6 {[%clk 0:01:56]} 20. Bb6 {[%clk 0:01:07]}  Rc8 {[%clk 0:01:56]} 21. Rad1 {[%clk 0:01:04]}  Ne4 {[%clk 0:01:44]} 22. Rfe1 {[%clk 0:00:56]}  Nd6 {[%clk 0:01:44]} 23. Nd4 {[%clk 0:00:50]}  Nxd4 {[%clk 0:01:36]} 24. Bxd4 {[%clk 0:00:50]}  Nf5 {[%clk 0:01:34]} 25. Bb6 {[%clk 0:00:48]}  h5 {[%clk 0:01:13]} 26. a5 {[%clk 0:00:37]}  h4 {[%clk 0:01:08]} 27. Nd3 {[%clk 0:00:37]}  Nd6 {[%clk 0:00:52]} 28. Nf4 {[%clk 0:00:32]}  Nc4 {[%clk 0:00:41]} 29. Nd5 {[%clk 0:00:28]}  e6 {[%clk 0:00:37]} 30. Nc7+ {[%clk 0:00:21]}  Ke7 {[%clk 0:00:36]} 31. Bc5+ {[%clk 0:00:18]}  Kf6 {[%clk 0:00:36]} 32. Rd7 {[%clk 0:00:16]}  g5 {[%clk 0:00:36]} 33. b3 {[%clk 0:00:13]}  Nxa5 {[%clk 0:00:35]} 34. Be7+ {[%clk 0:00:12]}  Kg6 {[%clk 0:00:35]} 35. b4 {[%clk 0:00:12]}  Nc4 {[%clk 0:00:34]} 36. h3 {[%clk 0:00:12]}  Ne5 {[%clk 0:00:33]} 37. Nxe6 {[%clk 0:00:04]}  Nxd7 {[%clk 0:00:30]} 38. Nxg7 {[%clk 0:00:04]}  Kxg7 {[%clk 0:00:30]} 39. Bxg5 {[%clk 0:00:05]}  Kg6 {[%clk 0:00:28]} 40. Be3 {[%clk 0:00:06]}  Rhe8 {[%clk 0:00:26]} 41. Rd1 {[%clk 0:00:06]}  Nf6 {[%clk 0:00:26]} 42. Rd6 {[%clk 0:00:06]}  Re6 {[%clk 0:00:26]} 43. Rd4 {[%clk 0:00:06]}  Ne4 {[%clk 0:00:26]} 44. c4 {[%clk 0:00:05]}  f5 {[%clk 0:00:25]} 45. c5 {[%clk 0:00:06]}  Rce8 {[%clk 0:00:16]} 46. Rd7 {[%clk 0:00:05]}  R6e7 {[%clk 0:00:16]} 47. Rd5 {[%clk 0:00:05]}  Nf6 {[%clk 0:00:16]} 48. Rd6 {[%clk 0:00:05]}  Re6 {[%clk 0:00:16]} 49. Rd4 {[%clk 0:00:06]}  Re4 {[%clk 0:00:17]} 50. Rd6 {[%clk 0:00:06]}  R8e6 {[%clk 0:00:17]} 51. Rd8 {[%clk 0:00:06]}  f4 {[%clk 0:00:18]} 52. Bd4 {[%clk 0:00:06]}  Re1+ {[%clk 0:00:18]} 53. Kh2 {[%clk 0:00:05]}  Ne4 {[%clk 0:00:18]} 54. Rg8+ {[%clk 0:00:04]}  Kf7 {[%clk 0:00:14]} 55. Rg4 {[%clk 0:00:04]}  Nd2 {[%clk 0:00:11]} 56. Rxf4+ {[%clk 0:00:04]}  Ke8 {[%clk 0:00:11]} 57. g3 {[%clk 0:00:03]}  Nf1+ {[%clk 0:00:10]} 58. Kg2 {[%clk 0:00:04]}  hxg3 {[%clk 0:00:10]} 59. fxg3 {[%clk 0:00:04]}  Ne3+ {[%clk 0:00:11]} 60. Bxe3 {[%clk 0:00:04]}  R6xe3 {[%clk 0:00:10]} 61. h4 {[%clk 0:00:05]}  R1e2+ {[%clk 0:00:10]} 62. Kh3 {[%clk 0:00:05]}  Re4 {[%clk 0:00:09]} 63. Rf5 {[%clk 0:00:05]}  Rxb4 {[%clk 0:00:09]} 64. h5 {[%clk 0:00:06]}  Re6 {[%clk 0:00:09]} 65. g4 {[%clk 0:00:06]}  a5 {[%clk 0:00:10]} 66. g5 {[%clk 0:00:06]}  a4 {[%clk 0:00:10]} 67. h6 {[%clk 0:00:06]}  Re1 {[%clk 0:00:07]} 68. Kg3 {[%clk 0:00:05]}  Rb3+ {[%clk 0:00:07]} 69. Kg4 {[%clk 0:00:05]}  a3 {[%clk 0:00:07]} 70. Rf2 {[%clk 0:00:06]}  Rh1 {[%clk 0:00:07]} 71. Kf5 {[%clk 0:00:06]}  Rb2 {[%clk 0:00:07]} 72. Rf3 {[%clk 0:00:06]}  a2 {[%clk 0:00:07]} 73. Ra3 {[%clk 0:00:06]}  a1=Q {[%clk 0:00:08]} 74. Rxa1 {[%clk 0:00:07]}  Rxa1 {[%clk 0:00:08]} 75. Kg6 {[%clk 0:00:07]}  Rh1 {[%clk 0:00:08]} 76. h7 {[%clk 0:00:08]}  Rbh2 {[%clk 0:00:09]} 0-1


[Site "https://www.chess.com"]

[Event "Titled Tuesday Blitz August 17 2021"]
[White "Shtyka, Sergey"]
[Black "Bologan, Victor"]
[WhiteFideId "4138465"]
[BlackFideId "13900048"]
[WhiteElo "2064"]
[BlackElo "2511"]
[Result "0-1"]
[Round "05"]
[TimeControl "180+1"]
[Date "2021.08.17"]
[WhiteClock "0:01:20"]
[BlackClock "0:02:08"]

1. e4 {[%clk 0:02:24]}  c5 {[%clk 0:02:59]} 2. Nf3 {[%clk 0:02:23]}  d6 {[%clk 0:02:59]} 3. d4 {[%clk 0:02:23]}  cxd4 {[%clk 0:02:59]} 4. Nxd4 {[%clk 0:02:24]}  Nf6 {[%clk 0:02:59]} 5. Nc3 {[%clk 0:02:25]}  a6 {[%clk 0:02:57]} 6. Bc4 {[%clk 0:02:24]}  e6 {[%clk 0:02:54]} 7. O-O {[%clk 0:02:24]}  Nbd7 {[%clk 0:02:48]} 8. Be3 {[%clk 0:02:24]}  Nc5 {[%clk 0:02:45]} 9. Bd3 {[%clk 0:02:24]}  Be7 {[%clk 0:02:39]} 10. f4 {[%clk 0:02:23]}  O-O {[%clk 0:02:38]} 11. Qf3 {[%clk 0:02:22]}  Qc7 {[%clk 0:02:37]} 12. Rae1 {[%clk 0:02:21]}  b5 {[%clk 0:02:33]} 13. a3 {[%clk 0:02:21]}  Bb7 {[%clk 0:02:32]} 14. Kh1 {[%clk 0:02:20]}  Rac8 {[%clk 0:02:27]} 15. Bf2 {[%clk 0:02:20]}  d5 {[%clk 0:02:23]} 16. exd5 {[%clk 0:02:13]}  Nxd5 {[%clk 0:02:23]} 17. Nxd5 {[%clk 0:02:12]}  Bxd5 {[%clk 0:02:22]} 18. Qh3 {[%clk 0:02:09]}  Nxd3 {[%clk 0:02:21]} 19. cxd3 {[%clk 0:02:01]}  Qxf4 {[%clk 0:02:15]} 20. Nf5 {[%clk 0:01:20]}  exf5 {[%clk 0:02:12]} 21. Rxe7 {[%clk 0:01:20]}  Qxf2 {[%clk 0:02:08]} 0-1


[Site "https://www.chess.com"]

[Event "Titled Tuesday Blitz August 17 2021"]
[White "Siva Mahadevan"]
[Black "Eynullayev, Atilla"]
[WhiteFideId "25043153"]
[BlackFideId "13413570"]
[WhiteElo "2203"]
[BlackElo "1997"]
[Result "1-0"]
[Round "05"]
[TimeControl "180+1"]
[Date "2021.08.17"]
[WhiteClock "0:01:02"]
[BlackClock "0:00:20"]

1. e4 {[%clk 0:03:00]}  c5 {[%clk 0:02:59]} 2. Nf3 {[%clk 0:03:00]}  e6 {[%clk 0:03:00]} 3. d4 {[%clk 0:02:59]}  cxd4 {[%clk 0:03:00]} 4. Nxd4 {[%clk 0:03:00]}  Nc6 {[%clk 0:03:01]} 5. Nc3 {[%clk 0:03:00]}  a6 {[%clk 0:03:02]} 6. Be2 {[%clk 0:03:00]}  Qc7 {[%clk 0:02:58]} 7. O-O {[%clk 0:02:59]}  Nf6 {[%clk 0:02:58]} 8. Be3 {[%clk 0:02:57]}  Be7 {[%clk 0:02:57]} 9. f4 {[%clk 0:02:57]}  d6 {[%clk 0:02:57]} 10. a4 {[%clk 0:02:56]}  O-O {[%clk 0:02:50]} 11. Kh1 {[%clk 0:02:54]}  Nxd4 {[%clk 0:02:26]} 12. Qxd4 {[%clk 0:02:55]}  Bd7 {[%clk 0:02:26]} 13. e5 {[%clk 0:02:51]}  Ne8 {[%clk 0:02:27]} 14. Rad1 {[%clk 0:01:55]}  Bc6 {[%clk 0:02:13]} 15. b4 {[%clk 0:01:45]}  Rd8 {[%clk 0:01:54]} 16. b5 {[%clk 0:01:35]}  dxe5 {[%clk 0:01:51]} 17. Qxe5 {[%clk 0:01:33]}  axb5 {[%clk 0:01:26]} 18. axb5 {[%clk 0:01:31]}  Qxe5 {[%clk 0:01:26]} 19. fxe5 {[%clk 0:01:31]}  Bd5 {[%clk 0:00:41]} 20. Nxd5 {[%clk 0:01:26]}  Rxd5 {[%clk 0:00:41]} 21. Rxd5 {[%clk 0:01:26]}  exd5 {[%clk 0:00:41]} 22. Bf3 {[%clk 0:01:27]}  Nc7 {[%clk 0:00:41]} 23. b6 {[%clk 0:01:27]}  Ne6 {[%clk 0:00:23]} 24. Bxd5 {[%clk 0:01:25]}  Bc5 {[%clk 0:00:24]} 25. Bxc5 {[%clk 0:01:16]}  Nxc5 {[%clk 0:00:24]} 26. c4 {[%clk 0:01:17]}  g6 {[%clk 0:00:21]} 27. g4 {[%clk 0:01:14]}  Kg7 {[%clk 0:00:21]} 28. Ra1 {[%clk 0:01:12]}  Re8 {[%clk 0:00:19]} 29. Ra7 {[%clk 0:01:06]}  Rxe5 {[%clk 0:00:19]} 30. Bxb7 {[%clk 0:01:05]}  Re7 {[%clk 0:00:20]} 31. Bd5 {[%clk 0:01:05]}  Re1+ {[%clk 0:00:20]} 32. Kg2 {[%clk 0:01:05]}  Nd3 {[%clk 0:00:20]} 33. Rxf7+ {[%clk 0:01:04]}  Kh6 {[%clk 0:00:20]} 34. h4 {[%clk 0:01:04]}  g5 {[%clk 0:00:19]} 35. Rf6+ {[%clk 0:01:01]}  Kg7 {[%clk 0:00:20]} 36. hxg5 {[%clk 0:01:02]}  Re2+ {[%clk 0:00:20]} 37. Kf1 {[%clk 0:01:02]}  Re1+ {[%clk 0:00:20]} 38. Kg2 {[%clk 0:01:02]}  Re2+ {[%clk 0:00:20]} 39. Kf3 {[%clk 0:01:02]}  Re7 {[%clk 0:00:19]} 40. b7 {[%clk 0:01:01]}  Ne1+ {[%clk 0:00:18]} 41. Kf2 {[%clk 0:01:02]}  Nd3+ {[%clk 0:00:19]} 42. Kg3 {[%clk 0:01:02]}  Re3+ {[%clk 0:00:19]} 43. Rf3 {[%clk 0:01:02]}  Re8 {[%clk 0:00:20]} 44. Rxd3 {[%clk 0:01:02]} 1-0


[Site "https://www.chess.com"]

[Event "Titled Tuesday Blitz August 17 2021"]
[White "Sonis, Francesco"]
[Black "Mirzoev, Azer"]
[WhiteFideId "895733"]
[BlackFideId "13400304"]
[WhiteElo "2373"]
[BlackElo "2525"]
[Result "1/2-1/2"]
[Round "05"]
[TimeControl "180+1"]
[Date "2021.08.17"]
[WhiteClock "0:00:14"]
[BlackClock "0:00:03"]

1. d4 {[%clk 0:01:48]}  d5 {[%clk 0:02:59]} 2. c4 {[%clk 0:01:47]}  c6 {[%clk 0:02:59]} 3. Nf3 {[%clk 0:01:46]}  Nf6 {[%clk 0:02:59]} 4. e3 {[%clk 0:01:45]}  a6 {[%clk 0:02:57]} 5. Nc3 {[%clk 0:01:43]}  g6 {[%clk 0:02:57]} 6. a4 {[%clk 0:01:37]}  Bg7 {[%clk 0:02:57]} 7. Be2 {[%clk 0:01:35]}  O-O {[%clk 0:02:57]} 8. O-O {[%clk 0:01:35]}  Be6 {[%clk 0:02:46]} 9. Qb3 {[%clk 0:01:34]}  Ra7 {[%clk 0:02:46]} 10. a5 {[%clk 0:01:33]}  dxc4 {[%clk 0:02:39]} 11. Bxc4 {[%clk 0:01:32]}  Bxc4 {[%clk 0:02:39]} 12. Qxc4 {[%clk 0:01:33]}  Nbd7 {[%clk 0:02:38]} 13. Rd1 {[%clk 0:01:29]}  e6 {[%clk 0:02:36]} 14. e4 {[%clk 0:01:28]}  Ra8 {[%clk 0:02:36]} 15. h3 {[%clk 0:01:27]}  Re8 {[%clk 0:02:33]} 16. Bf4 {[%clk 0:01:24]}  h6 {[%clk 0:02:30]} 17. Qb3 {[%clk 0:01:22]}  Ra7 {[%clk 0:02:22]} 18. Be3 {[%clk 0:01:19]}  Qc8 {[%clk 0:02:11]} 19. d5 {[%clk 0:01:18]}  Ra8 {[%clk 0:02:11]} 20. dxe6 {[%clk 0:01:16]}  Rxe6 {[%clk 0:02:10]} 21. Ra4 {[%clk 0:01:11]}  Re8 {[%clk 0:02:08]} 22. Bf4 {[%clk 0:01:09]}  Nf8 {[%clk 0:02:03]} 23. Bd6 {[%clk 0:01:04]}  N6d7 {[%clk 0:01:54]} 24. Rb4 {[%clk 0:00:58]}  Ne6 {[%clk 0:01:51]} 25. e5 {[%clk 0:00:28]}  Ndc5 {[%clk 0:01:37]} 26. Qc4 {[%clk 0:00:26]}  Bf8 {[%clk 0:01:37]} 27. Bxf8 {[%clk 0:00:24]}  Rxf8 {[%clk 0:01:29]} 28. Ne4 {[%clk 0:00:24]}  Nxe4 {[%clk 0:01:28]} 29. Qxe4 {[%clk 0:00:25]}  Rd8 {[%clk 0:01:28]} 30. Rd6 {[%clk 0:00:24]}  Qc7 {[%clk 0:01:16]} 31. Qe3 {[%clk 0:00:19]}  Kg7 {[%clk 0:01:00]} 32. Rh4 {[%clk 0:00:16]}  h5 {[%clk 0:00:47]} 33. Rb4 {[%clk 0:00:14]}  Rab8 {[%clk 0:00:28]} 34. Qb6 {[%clk 0:00:13]}  Qxb6 {[%clk 0:00:25]} 35. Rxb6 {[%clk 0:00:13]}  Nc5 {[%clk 0:00:15]} 36. Nd4 {[%clk 0:00:13]}  Nd7 {[%clk 0:00:13]} 37. Nxc6 {[%clk 0:00:10]}  bxc6 {[%clk 0:00:11]} 38. Rxb8 {[%clk 0:00:10]}  Rxb8 {[%clk 0:00:10]} 39. Rxd7 {[%clk 0:00:11]}  Rxb2 {[%clk 0:00:11]} 40. e6 {[%clk 0:00:11]}  Kf6 {[%clk 0:00:10]} 41. exf7 {[%clk 0:00:11]}  Kg7 {[%clk 0:00:10]} 42. Ra7 {[%clk 0:00:12]}  Rb5 {[%clk 0:00:09]} 43. Rxa6 {[%clk 0:00:12]}  Kxf7 {[%clk 0:00:10]} 44. Kh2 {[%clk 0:00:12]}  c5 {[%clk 0:00:09]} 45. Ra8 {[%clk 0:00:13]}  c4 {[%clk 0:00:09]} 46. a6 {[%clk 0:00:13]}  Kg7 {[%clk 0:00:07]} 47. Rc8 {[%clk 0:00:11]}  Ra5 {[%clk 0:00:07]} 48. Rc7+ {[%clk 0:00:11]}  Kf6 {[%clk 0:00:06]} 49. a7 {[%clk 0:00:12]}  c3 {[%clk 0:00:05]} 50. f4 {[%clk 0:00:12]}  c2 {[%clk 0:00:05]} 51. Kg3 {[%clk 0:00:12]}  Rxa7 {[%clk 0:00:03]} 52. Rc6+ {[%clk 0:00:12]}  Kg7 {[%clk 0:00:03]} 53. Rxc2 {[%clk 0:00:12]}  Ra4 {[%clk 0:00:03]} 54. Rc7+ {[%clk 0:00:10]}  Kh6 {[%clk 0:00:03]} 55. Rf7 {[%clk 0:00:10]}  Rb4 {[%clk 0:00:02]} 56. Kh4 {[%clk 0:00:09]}  g5+ {[%clk 0:00:02]} 57. Kg3 {[%clk 0:00:10]}  gxf4+ {[%clk 0:00:02]} 58. Rxf4 {[%clk 0:00:10]}  Rb6 {[%clk 0:00:02]} 59. Kh4 {[%clk 0:00:10]}  Rg6 {[%clk 0:00:02]} 60. g3 {[%clk 0:00:09]}  Ra6 {[%clk 0:00:01]} 61. Re4 {[%clk 0:00:09]}  Rb6 {[%clk 0:00:01]} 62. Rd4 {[%clk 0:00:09]}  Ra6 {[%clk 0:00:02]} 63. Rb4 {[%clk 0:00:09]}  Rc6 {[%clk 0:00:02]} 64. Rb5 {[%clk 0:00:09]}  Rc4+ {[%clk 0:00:02]} 65. g4 {[%clk 0:00:10]}  hxg4 {[%clk 0:00:02]} 66. hxg4 {[%clk 0:00:11]}  Kg6 {[%clk 0:00:03]} 67. Rb6+ {[%clk 0:00:11]}  Kg7 {[%clk 0:00:03]} 68. Kh5 {[%clk 0:00:11]}  Rc7 {[%clk 0:00:03]} 69. g5 {[%clk 0:00:11]}  Ra7 {[%clk 0:00:03]} 70. Rg6+ {[%clk 0:00:11]}  Kh7 {[%clk 0:00:03]} 71. Rh6+ {[%clk 0:00:12]}  Kg7 {[%clk 0:00:03]} 72. Rd6 {[%clk 0:00:13]}  Kh7 {[%clk 0:00:03]} 73. Rg6 {[%clk 0:00:12]}  Rb7 {[%clk 0:00:03]} 74. Rh6+ {[%clk 0:00:11]}  Kg7 {[%clk 0:00:03]} 75. Rg6+ {[%clk 0:00:12]}  Kh7 {[%clk 0:00:02]} 76. Rh6+ {[%clk 0:00:13]}  Kg7 {[%clk 0:00:03]} 77. Rg6+ {[%clk 0:00:14]}  Kh7 {[%clk 0:00:03]} 1/2-1/2


[Site "https://www.chess.com"]